lending/lending_fUSD_20260330
["ID","MTS","AMOUNT","RATE_DAILY","PERIOD"]
[419085000,1774852244472,-250.0,0.00015072,2]
[419085001,1774852244481,-250.0,0.00015072,2]
[419085002,1774852244491,-250.0,0.00015072,2]
[419085003,1774852244500,-250.0,0.00015072,2]
[419085004,1774852244510,-250.0,0.00015072,2]
[419085005,1774852244519,-250.0,0.00015072,2]
[419085006,1774852244528,-200.0,0.00015072,2]
[419085007,1774852244538,-250.0,0.00015072,2]
[419085008,1774852244548,-312.13772435,0.00015072,2]
[419085009,1774852244558,-250.0,0.00015072,2]
[419085010,1774852244568,-250.0,0.00015072,2]
[419085011,1774852244577,-250.0,0.00015072,2]
[419085012,1774852244586,-250.0,0.00015072,2]
[419085013,1774852244595,-743.50770149,0.00015072,2]
[419085014,1774852244605,-3974.14896376,0.00015111,2]
[419085015,1774852244614,-500.0,0.00015127,2]
[419085016,1774852244624,-151.0,0.00015127,2]
[419085017,1774852244633,-340.112076,0.00015162,7]
[419085018,1774852244642,-280.828253,0.00015162,7]
[419085019,1774852244652,-160.0,0.00015162,7]
[419085020,1774852244662,-151.0,0.00015182,2]
[419085021,1774852244671,-151.0,0.00015182,2]
[419085022,1774852244680,-500.0,0.00015182,2]
[419085023,1774852244690,-151.0,0.00015182,2]
[419085024,1774852244699,-3052.59917434,0.00015197,2]
[419085025,1774852244709,-1745.92791545,0.00015203,2]
[419085026,1774852244718,-500.0,0.00015237,2]
[419085027,1774852244727,-151.0,0.00015237,2]
[419085028,1774852244736,-1384.06,0.00015282,2]
[419085029,1774852244745,-500.0,0.00015292,2]
[419085030,1774852244754,-151.0,0.00015292,2]
[419085031,1774852244764,-444.1626,0.000153,22]
[419085032,1774852244773,-259.73,0.00015304,30]
[419085033,1774852244783,-500.0,0.00015347,2]
[419085034,1774852244792,-151.0,0.00015347,2]
[419085035,1774852244801,-161.0,0.000154,2]
[419085036,1774852244811,-500.0,0.00015402,2]
[419085037,1774852244820,-151.0,0.00015402,2]
[419085038,1774852244830,-500.0,0.00015457,2]
[419085039,1774852244839,-151.0,0.00015457,2]
[419085040,1774852244849,-13003.95,0.00015471,2]
[419085041,1774852244859,-1062.29,0.00015471,2]
[419085042,1774852244869,-2060.17,0.00015471,2]
[419085043,1774852244878,-9827.35,0.00015471,2]
[419085044,1774852244887,-597.36,0.00015471,2]
[419085045,1774852244897,-4000.0,0.00015507,2]
[419085046,1774852244906,-500.0,0.00015512,2]
[419085047,1774852244915,-151.0,0.00015512,2]
[419085048,1774852244924,-151.0,0.00015522,2]
[419085049,1774852244934,-151.0,0.00015522,2]
[419085050,1774852244943,-151.0,0.00015522,2]
[419085051,1774852244952,-655.920224,0.00015522,2]
[419085052,1774852244961,-655.920224,0.00015522,2]
[419085053,1774852244970,-655.920224,0.00015522,2]
[419085054,1774852244980,-655.920224,0.00015522,2]
[419085055,1774852244989,-433.378356,0.00015567,2]
[419085056,1774852244998,-433.378356,0.00015567,2]
[419085057,1774852245008,-433.378356,0.00015567,2]
[419085058,1774852245018,-433.378356,0.00015567,2]
[419085059,1774852245027,-500.0,0.00015567,2]
[419085060,1774852245036,-151.0,0.00015567,2]
[419085061,1774852245045,-181.08010149,0.0001562,2]
[419085062,1774852245055,-771.01748645,0.0001562,2]
[419085063,1774852245064,-500.0,0.00015622,2]
[419085064,1774852245073,-151.0,0.00015622,2]
[419085065,1774852245083,-166.0,0.00015753,2]
[419085066,1774852245092,-389.0,0.00015799,2]
[419085067,1774852245102,-389.0,0.00015799,2]
[419085068,1774852245112,-1619.0,0.00015802,2]
[419085069,1774852245121,-1497.0,0.00015833,5]
[419085070,1774852245130,-151.0,0.00015837,2]
[419085071,1774852245140,-151.0,0.0001584,2]
[419085072,1774852245149,-151.0,0.0001584,2]
[419085073,1774852245159,-237.350121,0.0001584,2]
[419085074,1774852245168,-2000.0,0.0001584,2]
[419085075,1774852245178,-2000.0,0.0001584,2]
[419085076,1774852245188,-162.0,0.00015842,2]
[419085077,1774852245197,-2000.0,0.0001585,2]
[419085078,1774852245206,-389.0,0.00015865,2]
[419085079,1774852245215,-500.0,0.00015872,2]
[419085080,1774852245224,-2000.0,0.0001589,2]
[419085081,1774852245234,-4000.0,0.00015895,2]
[419085082,1774852245245,-851.4828,0.000159,2]
[419085083,1774852245255,-249.55296252,0.000159,2]
[419085084,1774852245264,-1745.92791545,0.000159,2]
[419085085,1774852245274,-3052.59917434,0.000159,2]
[419085086,1774852245286,-3974.14896376,0.000159,2]
[419085087,1774852245295,-640.4237013,0.000159,2]
[419085088,1774852245305,-1384.06,0.00015945,2]
[419085089,1774852245314,-249.50747423,0.00015952,2]
[419085090,1774852245324,-5658.0075337,0.00015955,2]
[419085091,1774852245333,-50218.3993034,0.00015955,2]
[419085092,1774852245344,-151.0,0.00015955,2]
[419085093,1774852245354,-151.0,0.00015955,2]
[419085094,1774852245364,-433.378356,0.00015955,2]
[419085095,1774852245373,-433.378356,0.00015955,2]
[419085096,1774852245383,-433.378356,0.00015955,2]
[419085097,1774852245394,-433.378356,0.00015955,2]
[419085098,1774852245404,-152.348904,0.00015955,2]
[419085099,1774852245414,-237.465076,0.00015955,2]
[419085100,1774852245424,-151.0,0.00015955,2]
[419085101,1774852245433,-1289.79718312,0.00015958,2]
[419085102,1774852245444,-356.03578514,0.00015973,2]
[419085103,1774852245454,-504.76656967,0.00015973,2]
[419085104,1774852245464,-504.25937407,0.00015973,2]
[419085105,1774852245475,-503.89992989,0.00015973,2]
[419085106,1774852245486,-460.50027844,0.00015973,2]
[419085107,1774852245495,-151.0,0.00015973,2]
[419085108,1774852245505,-151.0,0.00015973,2]
[419085109,1774852245515,-151.0,0.00015973,2]
[419085110,1774852245524,-655.920224,0.00015973,2]
[419085111,1774852245534,-655.920224,0.00015973,2]
[419085112,1774852245543,-655.920224,0.00015973,2]
[419085113,1774852245553,-655.920224,0.00015973,2]
[419085114,1774852245563,-1384.06,0.0001599,2]
[419085115,1774852245572,-177.67846555,0.0001599,2]
[419085116,1774852245581,-151.0,0.00015997,2]
[419085117,1774852245591,-151.0,0.00015997,2]
[419085118,1774852245601,-672.00857251,0.00015999,2]
[419085119,1774852245610,-666.0,0.00015999,2]
[419085120,1774852245620,-666.0,0.00015999,2]
[419085121,1774852245629,-1871.0,0.00016,5]
[419085122,1774852245638,-352944.22194629,0.00016,2]
[419085123,1774852245653,-420.86114321,0.00016,2]
[419085124,1774852245664,-425.63,0.00016,2]
[419085145,1774852247319,-151.0,0.0001073,2]
[419085146,1774852247330,-1046.477,0.00014134,2]
[419085147,1774852247339,-4118121.48211027,0.00016,2]
[419085148,1774852247349,-96128.70875612,0.00016,2]
[419085149,1774852247362,-5362.66060943,0.00016,2]
[419085150,1774852247373,-467.19201008,0.00016,2]
[419085151,1774852247384,-1329.59856054,0.00016,2]
[419085152,1774852247395,-7572.13946771,0.00016,2]
[419085153,1774852247414,-3572.19980999,0.00016,2]
[419085154,1774852247425,-11908.6039419,0.00016,2]
[419085155,1774852247437,-1064.41897122,0.00016,2]
[419085156,1774852247448,-454.50091004,0.00016,2]
[419085157,1774852247928,-3857.7123853,0.00016,2]
[419085158,1774852247954,-45448.89818731,0.00016,2]
[419085159,1774852247964,-695.30488149,0.00016,2]
[419085160,1774852247979,-1700.0,0.00016,2]
[419085161,1774852600334,-300.0,8.996e-05,2]
[419085162,1774852600360,-50000.0,8.997e-05,2]
[419085163,1774852600396,-500.0,8.997e-05,2]
[419085164,1774852600429,-500.0,8.997e-05,2]
[419085165,1774852600461,-500.0,8.997e-05,2]
[419085166,1774852600493,-500.0,8.997e-05,2]
[419085167,1774852600526,-500.0,8.997e-05,2]
[419085168,1774852600558,-500.0,8.997e-05,2]
[419085169,1774852600589,-338.0,8.997e-05,2]
[419085170,1774852600867,-162.0,8.997e-05,2]
[419085171,1774852600898,-500.0,8.997e-05,2]
[419085172,1774852600932,-500.0,8.997e-05,2]
[419085173,1774852600964,-500.0,8.997e-05,2]
[419085174,1774852600995,-500.0,8.997e-05,2]
[419085175,1774852601027,-500.0,8.997e-05,2]
[419085176,1774852601060,-308.32864827,8.997e-05,2]
[419085177,1774852601091,-500.0,8.997e-05,2]
[419085178,1774852601123,-500.0,8.997e-05,2]
[419085179,1774852601155,-500.0,8.997e-05,2]
[419085180,1774852601187,-500.0,8.997e-05,2]
[419085181,1774852601220,-500.0,8.997e-05,2]
[419085182,1774852601254,-500.0,8.997e-05,2]
[419085183,1774852601288,-500.0,8.997e-05,2]
[419085184,1774852601320,-500.0,8.997e-05,2]
[419085185,1774852601347,-618.09465808,8.997e-05,2]
[419085186,1774852601373,-552.12163537,8.997e-05,2]
[419085187,1774852601405,-500.0,8.997e-05,2]
[419085188,1774852601440,-500.0,8.997e-05,2]
[419085189,1774852601472,-500.0,8.997e-05,2]
[419085190,1774852601505,-500.0,8.997e-05,2]
[419085191,1774852601538,-552.99349944,8.997e-05,2]
[419085192,1774852601571,-500.0,8.997e-05,2]
[419085193,1774852601610,-500.0,8.997e-05,2]
[419085194,1774852601645,-472.18058074,8.997e-05,2]
[419085195,1774852601679,-500.0,8.997e-05,2]
[419085196,1774852601716,-500.0,8.997e-05,2]
[419085197,1774852601751,-237.18025106,8.997e-05,2]
[419085198,1774852601784,-40235.10072704,8.998e-05,2]
[419085199,1774852628564,10000.01,7.945e-05,2]
[419085200,1774852628599,8652.712511,7.945e-05,2]
[419085201,1774852640045,2100.0,7.755e-05,2]
[419085202,1774852640554,1870.0,7.962e-05,2]
[419085203,1774852641072,1030.01,8.182e-05,2]
[419085204,1774852641098,826.47,8.182e-05,2]
[419085205,1774852641601,520.827489,8.353e-05,2]
[419085206,1774852641628,79.172511,8.353e-05,2]
[419085207,1774852642416,1267.95,8.451e-05,2]
[419085208,1774852686890,166.0,8.451e-05,3]
[419085210,1774852807856,165.0,8.451e-05,3]
[419085211,1774853021908,165.0,6.357e-05,2]
[419085215,1774853434780,-1920.0,8.684e-05,2]
[419085216,1774853434791,-181.997,8.818e-05,2]
[419085217,1774853434801,-2514.542,8.818e-05,2]
[419085218,1774853434811,-20431.76,8.898e-05,2]
[419085219,1774853434821,-23284.92961938,8.902e-05,2]
[419085220,1774853434833,-26715.07038062,8.902e-05,2]
[419085221,1774853434844,-600.0,8.902e-05,2]
[419085222,1774853434854,-549.26906616,8.973e-05,2]
[419085223,1774853434864,-500.36907193,8.973e-05,2]
[419085224,1774853434875,-502.37956193,8.973e-05,2]
[419085225,1774853434886,-460.50027844,8.973e-05,2]
[419085226,1774853434896,-504.25937407,8.973e-05,2]
[419085227,1774853434907,-504.76656967,8.973e-05,2]
[419085228,1774853434917,-503.89992989,8.973e-05,2]
[419085229,1774853434927,-500.0,8.997e-05,2]
[419085230,1774853434937,-500.0,8.997e-05,2]
[419085231,1774853434947,-484.59134974,8.997e-05,2]
[419085232,1774853434957,-24601.7291639,8.998e-05,2]
[419085233,1774853434973,-101000.28482594,8.998e-05,2]
[419085234,1774853434986,-356830.521,8.998e-05,2]
[419085235,1774853434998,-21144.18220611,8.998e-05,2]
[419085241,1774853438208,-1687.34775223,8.998e-05,2]
[419085242,1774853438282,-51835.97982478,8.998e-05,2]
[419085243,1774853438294,-1351.79,9.203e-05,2]
[419085244,1774853438305,-150.0,9.3e-05,2]
[419085245,1774853438315,-13215.7,9.3e-05,2]
[419085246,1774853438325,-999.99,9.3e-05,2]
[419085247,1774853438336,-4674.5,9.3e-05,2]
[419085248,1774853438346,-150.99,9.3e-05,2]
[419085249,1774853438357,-174.29455196,0.0001,2]
[419085250,1774853438368,-190.60632877,0.0001,2]
[419085251,1774853438378,-500.0,0.0001,2]
[419085252,1774853438388,-500.0,0.0001,2]
[419085253,1774853438398,-192.69527928,0.0001,2]
[419085254,1774853438410,-500.0,0.0001,2]
[419085255,1774853438420,-500.0,0.0001,2]
[419085256,1774853438430,-500.0,0.0001,2]
[419085257,1774853438440,-500.0,0.0001,2]
[419085258,1774853438450,-500.0,0.0001,2]
[419085259,1774853438460,-500.0,0.0001,2]
[419085260,1774853438470,-500.0,0.0001,2]
[419085261,1774853438481,-500.0,0.0001,2]
[419085262,1774853438491,-500.0,0.0001,2]
[419085263,1774853438501,-500.0,0.0001,2]
[419085264,1774853438511,-500.0,0.0001,2]
[419085265,1774853438521,-151.0,0.0001,2]
[419085266,1774853438531,-151.0,0.0001,2]
[419085267,1774853438541,-151.0,0.0001,2]
[419085268,1774853438551,-151.0,0.0001,2]
[419085269,1774853438561,-151.0,0.0001,2]
[419085270,1774853438571,-151.0,0.0001,2]
[419085271,1774853438582,-151.0,0.0001,2]
[419085272,1774853438592,-151.0,0.0001,2]
[419085273,1774853438603,-151.0,0.0001,2]
[419085274,1774853438614,-151.0,0.0001,2]
[419085275,1774853438624,-151.0,0.0001,2]
[419085276,1774853438634,-1297.21,0.00010133,2]
[419085277,1774853438645,-6965.67021742,0.00010133,2]
[419085278,1774853438687,-3034.31978258,0.00010133,2]
[419085279,1774853438697,-196.7492,0.000108,7]
[419085280,1774853438707,-170.11,0.00010828,2]
[419085281,1774853438718,-151.0,0.00010845,2]
[419085282,1774853438728,-259.73,0.00010858,30]
[419085283,1774853438739,-299.73,0.00010891,2]
[419085284,1774853438749,-3077.81735819,0.000109,2]
[419085285,1774853438759,-3077.81735812,0.000109,2]
[419085286,1774853438769,-150.0,0.00010959,2]
[419085287,1774853438780,-3077.81735812,0.00011045,2]
[419085288,1774853438790,-2014.09314615,0.00011099,2]
[419085289,1774853438800,-2014.09314606,0.00011099,2]
[419085290,1774853438810,-2014.09314606,0.00011099,2]
[419085291,1774853438820,-2091.99089624,0.00011099,2]
[419085292,1774853438830,-2091.99089619,0.00011099,2]
[419085293,1774853438841,-2091.99089619,0.00011099,2]
[419085294,1774853438850,-2091.99089619,0.00011369,2]
[419085295,1774853438861,-2014.09314606,0.00011369,2]
[419085296,1774853438870,-250.0,0.00011474,2]
[419085297,1774853438881,-1600.0,0.000117,4]
[419085298,1774853438890,-170.11,0.0001173,2]
[419085300,1774853438900,-3300.0,0.000118,4]
[419085301,1774853438909,-4900.0,0.000119,4]
[419085302,1774853438919,-300.0,0.00012,5]
[419085303,1774853438928,-3077.81735812,0.00012016,2]
[419085304,1774853438938,-519.45,0.00012022,30]
[419085305,1774853438948,-2091.99089619,0.00012124,2]
[419085306,1774853438958,-154.48516728,0.00012182,2]
[419085307,1774853438968,-177.67846555,0.00012272,2]
[419085308,1774853438978,-5900.84712566,0.00012273,2]
[419085309,1774853438987,-500.0,0.00012273,2]
[419085310,1774853438998,-500.0,0.00012281,2]
[419085311,1774853439007,-514.3970029,0.00012281,2]
[419085312,1774853439017,-500.0,0.00012281,2]
[419085313,1774853439027,-500.0,0.00012281,2]
[419085314,1774853439036,-500.0,0.00012281,2]
[419085315,1774853439046,-500.0,0.00012281,2]
[419085317,1774853439056,-500.0,0.00012281,2]
[419085318,1774853439066,-500.0,0.00012281,2]
[419085319,1774853439076,-500.0,0.00012281,2]
[419085320,1774853439087,-205.9308942,0.00012281,2]
[419085321,1774853439097,-500.0,0.00012281,2]
[419085322,1774853439107,-500.0,0.00012281,2]
[419085323,1774853439117,-500.0,0.00012281,2]
[419085324,1774853439126,-527.89619464,0.00012281,2]
[419085325,1774853439136,-168.3696283,0.00012281,2]
[419085326,1774853439147,-10370.40470861,0.00012282,2]
[419085327,1774853439210,-18376.80388109,0.00012282,2]
[419085328,1774853439230,-580.23789574,0.00012282,2]
[419085329,1774853439250,-6289.73662505,0.00012282,2]
[419085331,1774853440490,-2014.09314606,0.00012124,2]
[419085332,1774853440500,-12031.13742013,0.00012282,2]
[419085333,1774853441188,-152.48506302,0.00012282,2]
[419085334,1774853441199,-299994.25998098,0.00012282,2]
[419085335,1774853441262,-385.4641231,0.00012282,2]
[419085342,1774853443633,-151.0,0.00012282,2]
[419085343,1774853443643,-574.16046484,0.00012282,2]
[419085344,1774853444058,-368.499213,0.00012282,2]
[419085345,1774853444107,-6150.40569559,0.00012282,2]
[419085346,1774853444120,-6047.62076532,0.00012282,2]
[419085393,1774853446265,-349.8,8.798e-05,2]
[419085394,1774853446348,-37336.1643656,8.798e-05,2]
[419085395,1774853446362,-5070.96460128,8.798e-05,2]
[419085396,1774853446375,-969.06602183,8.798e-05,2]
[419085397,1774853452704,-475246.48081129,8.798e-05,2]
[419085398,1774853452715,-126864.0823712,0.00012282,2]
[419085399,1774853452772,-1419.65197788,0.00012282,2]
[419085401,1774853452847,-345291.85522438,0.00012282,2]
[419085416,1774853690854,-5000000.0,0.00046885,30]
[419085417,1774853696572,-5000000.0,0.00046885,30]
[419085418,1774853700910,-648521.52217259,0.00046885,30]
[419085419,1774853700940,-203241.00213189,0.00046885,30]
[419085420,1774853700968,-23255.37427542,0.00046885,120]
[419085421,1774853700998,-113675.48048522,0.00046885,30]
[419085422,1774853701028,-115083.96581972,0.00046885,120]
[419085423,1774853701058,-80341.28605326,0.00046885,30]
[419085424,1774853701115,-146438.35782408,0.00046885,30]
[419085425,1774853701171,-259482.88889162,0.00046885,30]
[419085426,1774853701227,-15099.58783219,0.00046885,60]
[419085427,1774853701283,-586.23259717,0.00046885,120]
[419085428,1774853701340,-199965.65,0.00046885,30]
[419085429,1774853701397,-500.0,0.00046885,120]
[419085430,1774853701454,-500.0,0.00046885,120]
[419085431,1774853701512,-500.0,0.00046885,120]
[419085432,1774853701569,-500.0,0.00046885,120]
[419085433,1774853701629,-500.0,0.00046885,120]
[419085434,1774853701687,-616.64343859,0.00046885,120]
[419085435,1774853701746,-500.0,0.00046885,120]
[419085436,1774853701810,-1000000.0,0.00046885,55]
[419085437,1774853701872,-1000000.0,0.00046885,55]
[419085438,1774853701934,-1190692.00847825,0.00046885,120]
[419085439,1774853708138,-809307.99152175,0.00046885,120]
[419085440,1774853708199,-2000000.0,0.00046885,120]
[419085441,1774853708257,-2000000.0,0.00046885,120]
[419085442,1774853708313,-641.41604444,0.00046885,120]
[419085443,1774853708369,-1244.10480035,0.00046885,60]
[419085444,1774853708428,-188806.48763346,0.00046885,75]
[419085445,1774853713296,-1811193.51236654,0.00046885,75]
[419085446,1774853713354,-500.0,0.00046885,60]
[419085447,1774853713411,-500.0,0.00046885,60]
[419085448,1774853713468,-500.0,0.00046885,60]
[419085449,1774853713525,-500.0,0.00046885,60]
[419085450,1774853713583,-500.0,0.00046885,60]
[419085451,1774853713642,-500.0,0.00046885,60]
[419085452,1774853713699,-500.0,0.00046885,60]
[419085453,1774853713755,-500.0,0.00046885,60]
[419085454,1774853713811,-500.0,0.00046885,60]
[419085455,1774853713866,-500.0,0.00046885,60]
[419085456,1774853713920,-151.40369395,0.00046885,60]
[419085457,1774853713975,-570.18885888,0.00046885,120]
[419085458,1774853714029,-500.0,0.00046885,120]
[419085459,1774853714084,-500.0,0.00046885,120]
[419085460,1774853714145,-500.0,0.00046885,120]
[419085461,1774853714203,-500.0,0.00046885,120]
[419085462,1774853714259,-500.0,0.00046885,120]
[419085463,1774853714314,-606.06641388,0.00046885,120]
[419085464,1774853714369,-1000.0,0.00046885,120]
[419085465,1774853714425,-1000.0,0.00046885,120]
[419085466,1774853714481,-1000.0,0.00046885,120]
[419085467,1774853714538,-1000.0,0.00046885,120]
[419085468,1774853714593,-1000.0,0.00046885,120]
[419085469,1774853714651,-1000.0,0.00046885,120]
[419085470,1774853714710,-1000.0,0.00046885,120]
[419085471,1774853714772,-1000.0,0.00046885,120]
[419085472,1774853714830,-1000.0,0.00046885,120]
[419085473,1774853714891,-1012.71201967,0.00046885,120]
[419085474,1774853714950,-500.0,0.00046885,120]
[419085475,1774853715008,-500.0,0.00046885,120]
[419085476,1774853715070,-500.0,0.00046885,120]
[419085477,1774853715641,-500.0,0.00046885,120]
[419085478,1774853715697,-500.0,0.00046885,120]
[419085479,1774853715754,-500.0,0.00046885,120]
[419085480,1774853715809,-500.0,0.00046885,120]
[419085481,1774853715867,-453.40667138,0.00046885,120]
[419085482,1774853715923,-613.41946294,0.00046885,120]
[419085483,1774853715981,-1020.63,0.00046885,120]
[419085484,1774853716037,-1020.63,0.00046885,120]
[419085485,1774853716095,-1020.63,0.00046885,120]
[419085486,1774853716152,-1020.63,0.00046885,120]
[419085487,1774853716210,-1020.63,0.00046885,120]
[419085488,1774853716267,-1020.63,0.00046885,120]
[419085489,1774853716325,-1020.63,0.00046885,120]
[419085490,1774853716383,-1020.63,0.00046885,120]
[419085491,1774853716440,-1020.63,0.00046885,120]
[419085492,1774853716496,-1020.63,0.00046885,120]
[419085493,1774853716553,-1020.63,0.00046885,120]
[419085494,1774853716611,-1020.63,0.00046885,120]
[419085495,1774853716669,-1020.63,0.00046885,120]
[419085496,1774853716727,-1020.63,0.00046885,120]
[419085497,1774853716783,-1020.63,0.00046885,120]
[419085498,1774853716838,-1020.63,0.00046885,120]
[419085499,1774853716894,-1020.63,0.00046885,120]
[419085500,1774853716951,-1020.63,0.00046885,120]
[419085501,1774853717008,-1020.63,0.00046885,120]
[419085502,1774853717064,-1020.63,0.00046885,120]
[419085503,1774853717122,-1020.63,0.00046885,120]
[419085504,1774853717181,-1020.63,0.00046885,120]
[419085505,1774853717240,-1020.63,0.00046885,120]
[419085506,1774853717299,-1020.78165849,0.00046885,120]
[419085507,1774853717358,-252.01755864,0.00046885,30]
[419085508,1774853717418,-1363.36,0.00046885,120]
[419085509,1774853717478,-1363.36,0.00046885,120]
[419085510,1774853717538,-1363.36,0.00046885,120]
[419085511,1774853717600,-1363.36,0.00046885,120]
[419085512,1774853717660,-1363.36,0.00046885,120]
[419085513,1774853717720,-1363.36,0.00046885,120]
[419085514,1774853717781,-1363.36,0.00046885,120]
[419085515,1774853717840,-1363.36,0.00046885,120]
[419085516,1774853717900,-1363.36,0.00046885,120]
[419085517,1774853717960,-1363.36,0.00046885,120]
[419085518,1774853718024,-1363.36,0.00046885,120]
[419085519,1774853718084,-1363.36,0.00046885,120]
[419085520,1774853718145,-1363.36,0.00046885,120]
[419085521,1774853718202,-1363.36,0.00046885,120]
[419085522,1774853718258,-1363.36,0.00046885,120]
[419085523,1774853718315,-1363.36,0.00046885,120]
[419085524,1774853718372,-1363.36,0.00046885,120]
[419085525,1774853718430,-1363.36,0.00046885,120]
[419085526,1774853718489,-1363.36,0.00046885,120]
[419085527,1774853718547,-1363.36,0.00046885,120]
[419085528,1774853718606,-1363.36,0.00046885,120]
[419085529,1774853718664,-1363.36,0.00046885,120]
[419085530,1774853718723,-1363.36,0.00046885,120]
[419085531,1774853718782,-1363.55393759,0.00046885,120]
[419085532,1774853718837,-2900.9,0.00046885,120]
[419085533,1774853718892,-2900.9,0.00046885,120]
[419085534,1774853718948,-2900.9,0.00046885,120]
[419085535,1774853719007,-2900.9,0.00046885,120]
[419085536,1774853719068,-2900.9,0.00046885,120]
[419085537,1774853719127,-2900.9,0.00046885,120]
[419085538,1774853719183,-2900.9,0.00046885,120]
[419085539,1774853719241,-2900.9,0.00046885,120]
[419085540,1774853719299,-2900.9,0.00046885,120]
[419085541,1774853719357,-2900.9,0.00046885,120]
[419085542,1774853719414,-2900.9,0.00046885,120]
[419085543,1774853719470,-2900.9,0.00046885,120]
[419085544,1774853719528,-2900.9,0.00046885,120]
[419085545,1774853719585,-2900.9,0.00046885,120]
[419085546,1774853719645,-2900.9,0.00046885,120]
[419085547,1774853719704,-2900.9,0.00046885,120]
[419085548,1774853719763,-2900.9,0.00046885,120]
[419085549,1774853719823,-2900.9,0.00046885,120]
[419085550,1774853719884,-2900.9,0.00046885,120]
[419085551,1774853719943,-2900.9,0.00046885,120]
[419085552,1774853720001,-2900.9,0.00046885,120]
[419085553,1774853720061,-2900.9,0.00046885,120]
[419085554,1774853720120,-2900.9,0.00046885,120]
[419085555,1774853720179,-2901.12829452,0.00046885,120]
[419085556,1774853720241,-1000000.0,0.00046885,120]
[419085557,1774853720301,-251.37190556,0.00046885,120]
[419085558,1774853720362,-1000000.0,0.00046885,120]
[419085559,1774853720424,-1000000.0,0.00046885,120]
[419085560,1774853720485,-38057.96715796,0.00046885,120]
[419085561,1774853751262,-961942.03284204,0.00046885,120]
[419085562,1774853751318,-1000000.0,0.00046885,120]
[419085563,1774853751375,-1000000.0,0.00046885,120]
[419085564,1774853751433,-1000000.0,0.00046885,120]
[419085565,1774853751490,-1000000.0,0.00046885,120]
[419085566,1774853751547,-38057.96715796,0.00046885,120]
[419085567,1774853755368,-961942.03284204,0.00046885,120]
[419085568,1774853755429,-1000000.0,0.00046885,120]
[419085569,1774853755489,-500.0,0.00046885,120]
[419085570,1774853755549,-500.0,0.00046885,120]
[419085571,1774853755609,-500.0,0.00046885,120]
[419085572,1774853755669,-500.0,0.00046885,120]
[419085573,1774853755729,-420.96619981,0.00046885,120]
[419085574,1774853755789,-1000000.0,0.00046885,120]
[419085575,1774853755847,-651.05,0.00046885,120]
[419085576,1774853755905,-651.05,0.00046885,120]
[419085577,1774853755963,-651.05,0.00046885,120]
[419085578,1774853756019,-651.05,0.00046885,120]
[419085579,1774853756073,-651.05,0.00046885,120]
[419085580,1774853756130,-651.05,0.00046885,120]
[419085581,1774853756187,-651.05,0.00046885,120]
[419085582,1774853756243,-651.05,0.00046885,120]
[419085583,1774853756300,-651.05,0.00046885,120]
[419085584,1774853756357,-651.05,0.00046885,120]
[419085585,1774853756414,-651.05,0.00046885,120]
[419085586,1774853756472,-651.05,0.00046885,120]
[419085587,1774853756530,-651.05,0.00046885,120]
[419085588,1774853756590,-651.05,0.00046885,120]
[419085589,1774853756648,-651.05,0.00046885,120]
[419085590,1774853756707,-651.05,0.00046885,120]
[419085591,1774853756764,-651.05,0.00046885,120]
[419085592,1774853756825,-651.05,0.00046885,120]
[419085593,1774853756883,-651.05,0.00046885,120]
[419085594,1774853756940,-651.05,0.00046885,120]
[419085595,1774853756996,-651.05,0.00046885,120]
[419085596,1774853757053,-651.05,0.00046885,120]
[419085597,1774853757111,-1000000.0,0.00046885,120]
[419085598,1774853757171,-651.05,0.00046885,120]